fUST/lending_fUST_20250531
["ID","MTS","AMOUNT","RATE_DAILY","PERIOD"]
[363300319,1748664640924,-430.0,0.0001841,2]
[363300321,1748664640933,-430.0,0.0001841,2]
[363300323,1748664640942,-440.37215013,0.0001841,2]
[363300325,1748664640951,-446.76484331,0.0001841,2]
[363300327,1748664640961,-430.0,0.0001841,2]
[363300329,1748664640971,-430.0,0.0001841,2]
[363300331,1748664640980,-430.0,0.0001841,2]
[363300333,1748664640989,-430.0,0.00018411,2]
[363300335,1748664640999,-442.08321653,0.00018411,2]
[363300337,1748664641008,-430.0,0.00018411,2]
[363300339,1748664641018,-430.0,0.00018411,2]
[363300341,1748664641030,-430.0,0.00018411,2]
[363300343,1748664641040,-430.0,0.00018411,2]
[363300345,1748664641050,-528.14523089,0.00018411,2]
[363300347,1748664641059,-430.0,0.00018411,2]
[363300349,1748664641069,-430.0,0.00018411,2]
[363300351,1748664641078,-430.0,0.00018411,2]
[363300353,1748664641088,-430.0,0.00018411,2]
[363300355,1748664641097,-430.0,0.00018411,2]
[363300357,1748664641107,-212.36,0.00018411,2]
[363300359,1748664641117,-430.0,0.00018411,2]
[363300361,1748664641126,-430.0,0.00018411,2]
[363300363,1748664641136,-430.0,0.00018411,2]
[363300365,1748664641146,-430.0,0.00018411,2]
[363300367,1748664641155,-430.0,0.00018411,2]
[363300369,1748664641164,-430.0,0.00018411,2]
[363300371,1748664641173,-430.0,0.00018411,2]
[363300373,1748664641182,-430.0,0.00018411,2]
[363300375,1748664641192,-430.0,0.00018411,2]
[363300377,1748664641201,-430.0,0.00018411,2]
[363300379,1748664641210,-430.0,0.00018411,2]
[363300381,1748664641220,-430.0,0.00018411,2]
[363300383,1748664641230,-539.94,0.00018411,2]
[363300385,1748664641240,-430.0,0.00018411,2]
[363300387,1748664641251,-430.0,0.00018411,2]
[363300389,1748664641261,-430.0,0.00018411,2]
[363300391,1748664641274,-430.0,0.00018411,2]
[363300393,1748664641287,-430.0,0.00018411,2]
[363300395,1748664641296,-430.0,0.00018411,2]
[363300396,1748664641306,-430.0,0.00018411,2]
[363300398,1748664641317,-447.04212217,0.00018411,2]
[363300401,1748664641327,-447.58325611,0.00018411,2]
[363300402,1748664641338,-430.0,0.00018411,2]
[363300404,1748664641348,-430.0,0.00018412,2]
[363300407,1748664641358,-351.41117283,0.00018412,2]
[363300409,1748664641368,-430.0,0.00018412,2]
[363300410,1748664641378,-430.0,0.00018412,2]
[363300412,1748664641388,-430.0,0.00018412,2]
[363300414,1748664641397,-433.89178421,0.00018412,2]
[363300416,1748664641407,-391.77419182,0.00018412,2]
[363300418,1748664641417,-430.0,0.00018412,2]
[363300420,1748664641426,-430.0,0.00018412,2]
[363300422,1748664641436,-430.0,0.00018412,2]
[363300424,1748664641445,-471.4,0.00018412,2]
[363300426,1748664641455,-216.6274282,0.00018412,2]
[363300428,1748664641464,-430.0,0.00018412,2]
[363300430,1748664641473,-527.47391769,0.00018412,2]
[363300432,1748664641483,-430.0,0.00018412,2]
[363300434,1748664641492,-430.0,0.00018412,2]
[363300436,1748664641502,-485.84799592,0.00018412,2]
[363300438,1748664641511,-430.0,0.00018412,2]
[363300440,1748664641523,-430.0,0.00018412,2]
[363300442,1748664641532,-430.0,0.00018413,2]
[363300444,1748664641541,-354.0166995,0.00018413,2]
[363300446,1748664641551,-455.1315252,0.00018413,2]
[363300448,1748664641560,-430.0,0.00018413,2]
[363300450,1748664641570,-430.0,0.00018413,2]
[363300452,1748664641579,-430.0,0.00018413,2]
[363300454,1748664641588,-430.0,0.00018413,2]
[363300456,1748664641597,-430.0,0.00018413,2]
[363300458,1748664641606,-160.0,0.00018638,2]
[363300460,1748664641615,-423.4608169,0.00018638,2]
[363300462,1748664641623,-842.5625,0.00018638,2]
[363300463,1748664641633,-229.3428821,0.00018638,2]
[363300466,1748664641642,-160.0,0.00018638,2]
[363300468,1748664641652,-212.77096907,0.00018638,2]
[363300470,1748664641661,-160.0,0.00018638,2]
[363300472,1748664641671,-12664.98044988,0.00018638,2]
[363300474,1748664641681,-160.0,0.00018638,2]
[363300476,1748664641690,-430.0,0.00018682,2]
[363300478,1748664641699,-968.98,0.00018682,2]
[363300480,1748664641708,-430.0,0.00018683,2]
[363300481,1748664641718,-1397.23,0.00018683,2]
[363300483,1748664641727,-430.0,0.00018683,2]
[363300485,1748664641737,-430.0,0.00018683,2]
[363300487,1748664641746,-430.0,0.00018683,2]
[363300489,1748664641756,-283.14183753,0.00018684,2]
[363300491,1748664641766,-430.0,0.00018684,2]
[363300493,1748664641780,-430.0,0.00018684,2]
[363300495,1748664641790,-430.0,0.00018684,2]
[363300497,1748664641800,-430.0,0.00018684,2]
[363300500,1748664641811,-1167.27,0.00018684,2]
[363300501,1748664641823,-237.90370609,0.00018684,2]
[363300503,1748664641832,-430.0,0.00018684,2]
[363300505,1748664641842,-438.5471108,0.00018684,2]
[363300507,1748664641852,-430.0,0.00018684,2]
[363300509,1748664641862,-430.0,0.00018684,2]
[363300511,1748664641871,-430.0,0.00018684,2]
[363300513,1748664641881,-430.0,0.00018684,2]
[363300515,1748664641893,-430.0,0.00018684,2]
[363300517,1748664641903,-370.83257723,0.00018684,2]
[363300519,1748664641913,-430.0,0.00018684,2]
[363300521,1748664641922,-670.44,0.00018684,2]
[363300524,1748664641932,-430.0,0.00018684,2]
[363300526,1748664641941,-430.0,0.00018684,2]
[363300528,1748664641951,-430.0,0.00018684,2]
[363300529,1748664641960,-1152.08,0.00018684,2]
[363300531,1748664641969,-507.79,0.00018684,2]
[363300533,1748664641979,-158.42606361,0.00018684,2]
[363300535,1748664641991,-430.0,0.00018684,2]
[363300537,1748664642000,-430.0,0.00018684,2]
[363300538,1748664642009,-442.36757459,0.00018684,2]
[363300539,1748664642018,-430.0,0.00018684,2]
[363300540,1748664642029,-430.0,0.00018684,2]
[363300541,1748664642038,-430.0,0.00018684,2]
[363300542,1748664642046,-430.0,0.00018684,2]
[363300543,1748664642055,-430.0,0.00018684,2]
[363300544,1748664642064,-430.0,0.00018684,2]
[363300545,1748664642073,-181.20095711,0.00018684,2]
[363300546,1748664642082,-522.81372255,0.00018684,2]
[363300547,1748664642091,-430.0,0.00018684,2]
[363300548,1748664642099,-430.0,0.00018684,2]
[363300549,1748664642108,-430.0,0.00018684,2]
[363300550,1748664642117,-430.0,0.00018684,2]
[363300551,1748664642126,-430.0,0.00018684,2]
[363300552,1748664642135,-430.0,0.00018684,2]
[363300553,1748664642144,-156.70973206,0.00018684,2]
[363300554,1748664642153,-430.0,0.00018684,2]
[363300555,1748664642162,-541.66611936,0.00018685,2]
[363300556,1748664642171,-397.24158503,0.00018685,2]
[363300557,1748664642180,-430.0,0.00018685,2]
[363300558,1748664642189,-430.0,0.00018685,2]
[363300559,1748664642198,-430.0,0.00018685,2]
[363300560,1748664642206,-356.81100998,0.00018685,2]
[363300561,1748664642215,-430.0,0.00018685,2]
[363300562,1748664642223,-430.0,0.00018685,2]
[363300563,1748664642232,-450.01621852,0.00018685,2]
[363300564,1748664642241,-471.52,0.00018685,2]
[363300565,1748664642250,-430.0,0.00018685,2]
[363300566,1748664642259,-430.0,0.00018685,2]
[363300567,1748664642268,-247.19728997,0.00018685,2]
[363300568,1748664642279,-430.0,0.00018685,2]
[363300569,1748664642288,-430.0,0.00018685,2]
[363300570,1748664642297,-430.0,0.00018685,2]
[363300571,1748664642306,-430.0,0.00018685,2]
[363300572,1748664642315,-430.0,0.00018685,2]
[363300573,1748664642324,-539.94,0.00018685,2]
[363300574,1748664642333,-430.0,0.00018685,2]
[363300576,1748664642342,-430.0,0.00018685,2]
[363300578,1748664642352,-430.0,0.00018685,2]
[363300580,1748664642361,-430.0,0.00018685,2]
[363300582,1748664642370,-430.0,0.00018685,2]
[363300584,1748664642379,-430.0,0.00018685,2]
[363300586,1748664642390,-437.96947493,0.00018686,2]
[363300588,1748664642399,-430.0,0.00018686,2]
[363300590,1748664642408,-430.0,0.00018686,2]
[363300592,1748664642419,-217.78,0.00018686,2]
[363300594,1748664642429,-430.0,0.00018686,2]
[363300596,1748664642439,-455.98776912,0.00018686,2]
[363300598,1748664642449,-430.0,0.00018686,2]
[363300600,1748664642458,-457.58777008,0.00018686,2]
[363300601,1748664642467,-430.0,0.00018686,2]
[363300604,1748664642479,-499.17301178,0.00018687,2]
[363300605,1748664642490,-430.0,0.00018687,2]
[363300608,1748664642500,-430.0,0.00018687,2]
[363300609,1748664642511,-430.0,0.00018687,2]
[363300611,1748664642521,-543.5739841,0.00018687,2]
[363300613,1748664642531,-430.0,0.00018687,2]
[363300616,1748664642540,-1000.0,0.00018732,2]
[363300617,1748664642549,-438.97817513,0.00018732,2]
[363300619,1748664642559,-500.0,0.00018732,2]
[363300621,1748664642570,-500.0,0.00018752,2]
[363300623,1748664642579,-511.46750223,0.00018775,2]
[363300625,1748664642589,-1000.0,0.000188,2]
[363300627,1748664642599,-2043.62697493,0.000189,2]
[363300630,1748664642608,-1919.78482945,0.000189,2]
[363300632,1748664642617,-430.0,0.00018956,2]
[363300634,1748664642627,-968.98,0.00018956,2]
[363300635,1748664642635,-430.0,0.00018957,2]
[363300637,1748664642645,-1397.23,0.00018957,2]
[363300640,1748664642654,-430.0,0.00018957,2]
[363300642,1748664642664,-430.0,0.00018957,2]
[363300644,1748664642673,-430.0,0.00018957,2]
[363300646,1748664642683,-500.0,0.00018957,2]
[363300648,1748664642691,-461.91148004,0.00018957,2]
[363300650,1748664642701,-500.0,0.00018957,2]
[363300652,1748664642710,-500.0,0.00018957,2]
[363300654,1748664642719,-500.0,0.00018957,2]
[363300656,1748664642728,-500.0,0.00018957,2]
[363300657,1748664642738,-500.0,0.00018957,2]
[363300659,1748664642747,-513.7704215,0.00018957,2]
[363300661,1748664642756,-500.0,0.00018957,2]
[363300664,1748664642776,-500.0,0.00018957,2]
[363300666,1748664642790,-430.0,0.00018958,2]
[363300668,1748664642799,-430.0,0.00018958,2]
[363300670,1748664642809,-430.0,0.00018958,2]
[363300672,1748664642822,-1167.27,0.00018958,2]
[363300673,1748664642832,-430.0,0.00018958,2]
[363300676,1748664642841,-430.0,0.00018958,2]
[363300678,1748664642851,-430.0,0.00018958,2]
[363300680,1748664642862,-430.0,0.00018958,2]
[363300681,1748664642871,-430.0,0.00018958,2]
[363300683,1748664642881,-430.0,0.00018958,2]
[363300685,1748664642891,-670.44,0.00018958,2]
[363300687,1748664642901,-213.86769286,0.00018958,2]
[363300689,1748664642911,-430.0,0.00018958,2]
[363300692,1748664642920,-273.16251043,0.00018958,2]
[363300693,1748664642929,-1152.08,0.00018958,2]
[363300695,1748664642939,-507.79,0.00018958,2]
[363300697,1748664642948,-430.0,0.00018958,2]
[363300699,1748664642957,-430.0,0.00018958,2]
[363300701,1748664642967,-430.0,0.00018958,2]
[363300703,1748664642976,-430.0,0.00018958,2]
[363300706,1748664642986,-430.0,0.00018958,2]
[363300709,1748664642996,-430.0,0.00018958,2]
[363300711,1748664643006,-430.0,0.00018958,2]
[363300713,1748664643016,-430.0,0.00018958,2]
[363300727,1748664643140,-430.0,0.00018958,2]
[363300730,1748664643151,-430.0,0.00018958,2]
[363300732,1748664643161,-532.64261384,0.00018958,2]
[363300734,1748664643171,-430.0,0.00018958,2]
[363300736,1748664643180,-430.0,0.00018958,2]
[363300737,1748664643190,-430.0,0.00018959,2]
[363300739,1748664643199,-430.0,0.00018959,2]
[363300741,1748664643208,-430.0,0.00018959,2]
[363300743,1748664643218,-430.0,0.00018959,2]
[363300745,1748664643227,-430.0,0.00018959,2]
[363300747,1748664643236,-430.0,0.00018959,2]
[363300749,1748664643245,-430.0,0.00018959,2]
[363300752,1748664643255,-430.0,0.00018959,2]
[363300754,1748664643264,-430.0,0.00018959,2]
[363300755,1748664643273,-430.0,0.00018959,2]
[363300757,1748664643282,-430.0,0.00018959,2]
[363300759,1748664643291,-430.0,0.00018959,2]
[363300761,1748664643301,-539.94,0.00018959,2]
[363300763,1748664643310,-207.6729744,0.00018959,2]
[363300765,1748664643319,-340.11,0.00018959,2]
[363300767,1748664643328,-430.0,0.00018959,2]
[363300769,1748664643337,-430.0,0.00018959,2]
[363300771,1748664643346,-430.0,0.00018959,2]
[363300773,1748664643355,-430.0,0.00018959,2]
[363300775,1748664643364,-269.4345377,0.0001896,2]
[363300777,1748664643373,-497.7642072,0.0001896,2]
[363300779,1748664643383,-456.01268088,0.0001896,2]
[363300781,1748664643392,-470.16860411,0.0001896,2]
[363300783,1748664643401,-342.29067077,0.00018961,2]
[363300785,1748664643410,-430.0,0.00018961,2]
[363300787,1748664643419,-443.97463316,0.00018961,2]
[363300789,1748664643428,-1919.78482917,0.00019107,2]
[363300791,1748664643437,-341.55181322,0.00019158,2]
[363300793,1748664643446,-500.0,0.00019178,2]
[363300795,1748664643456,-205.11529356,0.00019178,2]
[363300797,1748664643465,-500.0,0.00019178,2]
[363300799,1748664643474,-477.00032564,0.00019178,2]
[363300812,1748664643589,-22.99967436,0.00019178,2]
[363300814,1748664643598,-500.0,0.00019178,2]
[363300816,1748664643607,-500.0,0.00019178,2]
[363300818,1748664643616,-500.0,0.00019178,2]
[363300820,1748664643625,-500.0,0.00019178,2]
[363300822,1748664643634,-500.0,0.00019178,2]
[363300824,1748664643644,-500.0,0.00019178,2]
[363300827,1748664643654,-500.0,0.00019178,2]
[363300829,1748664643663,-500.0,0.00019178,2]
[363300830,1748664643672,-500.0,0.00019178,2]
[363300833,1748664643682,-431.19432943,0.00019178,2]
[363300834,1748664643691,-500.0,0.00019178,2]
[363300837,1748664643701,-151.0,0.00019178,2]
[363300838,1748664643710,-326.595802,0.00019178,2]
[363300840,1748664643719,-1734.0,0.000192,2]
[363300842,1748664643729,-430.0,0.0001923,2]
[363300844,1748664643738,-968.98,0.0001923,2]
[363300847,1748664643747,-171.63551466,0.00019231,2]
[363300849,1748664643759,-258.36448534,0.00019231,2]
[363300851,1748664643769,-1397.23,0.00019231,2]
[363300853,1748664643779,-430.0,0.00019231,2]
[363300855,1748664643788,-430.0,0.00019231,2]
[363300857,1748664643797,-430.0,0.00019231,2]
[363300859,1748664643807,-430.0,0.00019232,2]
[363300861,1748664643819,-430.0,0.00019232,2]
[363300863,1748664643828,-430.0,0.00019232,2]
[363300865,1748664643837,-1167.27,0.00019232,2]
[363300867,1748664643847,-430.0,0.00019232,2]
[363300869,1748664643862,-430.0,0.00019232,2]
[363300871,1748664643874,-430.0,0.00019232,2]
[363300873,1748664643883,-430.0,0.00019232,2]
[363300875,1748664643894,-430.0,0.00019232,2]
[363300876,1748664643903,-670.44,0.00019232,2]
[363300878,1748664643912,-430.0,0.00019232,2]
[363300881,1748664643923,-1152.08,0.00019232,2]
[363300883,1748664643932,-507.79,0.00019232,2]
[363300887,1748664643942,-430.0,0.00019232,2]
[363300888,1748664643951,-430.0,0.00019232,2]
[363300890,1748664643960,-430.0,0.00019232,2]
[363300892,1748664643970,-223.25,0.00019232,2]
[363300894,1748664643979,-430.0,0.00019232,2]
[363300896,1748664643989,-300.67,0.00019232,2]
[363300898,1748664643998,-430.0,0.00019232,2]
[363300900,1748664644008,-430.0,0.00019232,2]
[363300902,1748664644017,-430.0,0.00019232,2]
[363300904,1748664644027,-430.0,0.00019232,2]
[363300906,1748664644037,-430.0,0.00019232,2]
[363300909,1748664644047,-430.0,0.00019232,2]
[363300911,1748664644056,-470.43089852,0.00019233,2]
[363300913,1748664644066,-430.0,0.00019233,2]
[363300915,1748664644075,-430.0,0.00019233,2]
[363300916,1748664644086,-499.1239775,0.00019233,2]
[363300918,1748664644095,-430.0,0.00019233,2]
[363300920,1748664644104,-430.0,0.00019233,2]
[363300922,1748664644113,-430.0,0.00019233,2]
[363300924,1748664644123,-430.0,0.00019233,2]
[363300926,1748664644132,-430.0,0.00019233,2]
[363300928,1748664644142,-430.0,0.00019233,2]
[363300931,1748664644151,-430.0,0.00019233,2]
[363300933,1748664644160,-430.0,0.00019233,2]
[363300935,1748664644170,-539.94,0.00019233,2]
[363300937,1748664644179,-430.0,0.00019233,2]
[363300939,1748664644187,-430.0,0.00019233,2]
[363300940,1748664644196,-430.0,0.00019233,2]
[363300943,1748664644206,-430.0,0.00019233,2]
[363300945,1748664644215,-156.587,0.00019233,2]
[363300947,1748664644224,-430.0,0.00019235,2]
[363300948,1748664644233,-800.0,0.0001926,2]
[363300951,1748664644243,-2000.0,0.0001928,2]
[363300953,1748664644252,-162.380719,0.00019288,2]
[363300955,1748664644261,-1919.78482917,0.00019314,2]
[363300957,1748664644270,-44515.87772178,0.00019329,2]
[363300959,1748664644284,-44843.53602667,0.00019329,2]
[363300961,1748664644293,-168.3888056,0.00019343,2]
[363300963,1748664644302,-174.61919141,0.00019398,2]
[363300965,1748664644311,-181.08010149,0.00019453,2]
[363300967,1748664644320,-430.0,0.00019504,2]
[363300969,1748664644330,-968.98,0.00019504,2]
[363300971,1748664644339,-524.93121818,0.00019505,2]
[363300973,1748664644348,-1397.23,0.00019505,2]
[363300975,1748664644357,-430.0,0.00019505,2]
[363300977,1748664644366,-430.0,0.00019505,2]
[363300979,1748664644375,-430.0,0.00019505,2]
[363300981,1748664644384,-28863.15065778,0.00019506,3]
[363300983,1748664644393,-147056.75840229,0.00019506,2]
[363300985,1748664644403,-12664.98044988,0.00019506,3]
[363300987,1748664644412,-430.0,0.00019506,2]
[363300989,1748664644421,-430.0,0.00019506,2]
[363300991,1748664644430,-1167.27,0.00019506,2]
[363300993,1748664644439,-430.0,0.00019506,2]
[363300995,1748664644449,-430.0,0.00019506,2]
[363300997,1748664644459,-430.0,0.00019506,2]
[363300999,1748664644468,-430.0,0.00019506,2]
[363301001,1748664644478,-430.0,0.00019506,2]
[363301003,1748664644486,-670.44,0.00019506,2]
[363301005,1748664644495,-1152.08,0.00019506,2]
[363301007,1748664644504,-507.79,0.00019506,2]
[363301009,1748664644514,-430.0,0.00019506,2]
[363301011,1748664644524,-430.0,0.00019506,2]
[363301013,1748664644533,-430.0,0.00019506,2]
[363301015,1748664644543,-430.0,0.00019506,2]
[363301017,1748664644552,-430.0,0.00019506,2]
[363301019,1748664644561,-375.56312031,0.00019506,2]
[363301021,1748664644570,-430.0,0.00019506,2]
[363301023,1748664644580,-430.0,0.00019506,2]
[363301024,1748664644591,-430.0,0.00019506,2]
[363301026,1748664644600,-255.73773825,0.00019507,2]
[363301028,1748664644610,-430.0,0.00019507,2]
[363301031,1748664644619,-430.0,0.00019507,2]
[363301032,1748664644628,-430.0,0.00019507,2]
[363301034,1748664644638,-230.07704568,0.00019507,2]
[363301037,1748664644647,-430.0,0.00019507,2]
[363301039,1748664644658,-430.0,0.00019507,2]
[363301041,1748664644667,-430.0,0.00019507,2]
[363301043,1748664644676,-430.0,0.00019507,2]
[363301045,1748664644686,-539.94,0.00019507,2]
[363301047,1748664644697,-430.0,0.00019507,2]
[363301049,1748664644706,-430.0,0.00019507,2]
[363301051,1748664644715,-430.0,0.00019507,2]
[363301053,1748664644724,-842.5625,0.00019508,3]
[363301055,1748664644734,-187.78006525,0.00019508,2]
[363301057,1748664644744,-430.0,0.00019509,2]
[363301059,1748664644754,-1919.78482917,0.00019521,2]
[363301061,1748664644763,-194.72792766,0.00019563,2]
[363301063,1748664644773,-364.3142842,0.00019589,2]
[363301065,1748664644782,-364.3142842,0.00019589,2]
[363301067,1748664644791,-364.3142842,0.00019589,2]
[363301069,1748664644800,-184.30692566,0.00019618,2]
[363301071,1748664644811,-1919.78482917,0.00019728,2]
[363301073,1748664644823,-151.0,0.00019737,2]
[363301075,1748664644832,-329.786434,0.00019737,2]
[363301077,1748664644841,-329.786434,0.00019737,2]
[363301079,1748664644851,-151.0,0.00019737,2]
[363301080,1748664644861,-151.0,0.00019737,2]
[363301082,1748664644871,-212.77096907,0.00019737,3]
[363301084,1748664644880,-430.0,0.00019778,2]
[363301086,1748664644891,-968.98,0.00019778,2]
[363301088,1748664644902,-1397.23,0.00019779,2]
[363301090,1748664644913,-430.0,0.00019779,2]
[363301092,1748664644924,-430.0,0.00019779,2]
[363301094,1748664644936,-430.0,0.0001978,2]
[363301096,1748664644949,-430.0,0.0001978,2]
[363301098,1748664644961,-1167.27,0.0001978,2]
[363301100,1748664644972,-430.0,0.0001978,2]
[363301102,1748664644981,-430.0,0.0001978,2]
[363301104,1748664644992,-430.0,0.0001978,2]
[363301105,1748664645005,-430.0,0.0001978,2]
[363301108,1748664645015,-430.0,0.0001978,2]
[363301110,1748664645026,-670.44,0.0001978,2]
[363301112,1748664645035,-1152.08,0.0001978,2]
[363301114,1748664645045,-507.79,0.0001978,2]
[363301115,1748664645055,-430.0,0.0001978,2]
[363301117,1748664645064,-430.0,0.0001978,2]
[363301120,1748664645079,-173.3848675,0.0001978,2]
[363301122,1748664645096,-430.0,0.0001978,2]
[363301124,1748664645105,-430.0,0.0001978,2]
[363301126,1748664645115,-430.0,0.00019781,2]
[363301128,1748664645124,-430.0,0.00019781,2]
[363301130,1748664645133,-430.0,0.00019781,2]
[363301132,1748664645143,-430.0,0.00019781,2]
[363301134,1748664645152,-430.0,0.00019781,2]
[363301136,1748664645161,-430.0,0.00019781,2]
[363301138,1748664645170,-430.0,0.00019781,2]
[363301139,1748664645179,-539.94,0.00019781,2]
[363301141,1748664645189,-430.0,0.00019781,2]
[363301143,1748664645198,-430.0,0.00019781,2]
[363301145,1748664645208,-430.0,0.00019781,2]
[363301147,1748664645217,-420.0,0.00019782,2]
[363301149,1748664645227,-430.0,0.00019783,2]
[363301152,1748664645237,-420.0,0.00019785,2]
[363301153,1748664645246,-1000.0,0.000198,3]
[363301155,1748664645256,-3000.0,0.00019828,2]
[363301157,1748664645266,-601.1127309,0.00019875,2]
[363301159,1748664645277,-1919.78482917,0.00019934,2]
[363301161,1748664645286,-461.346,0.00019956,2]
[363301163,1748664645296,-405.0,0.00019968,2]
[363301165,1748664645305,-4189.0,0.0002,2]
[363301167,1748664645314,-200.0,0.0002,2]
[363301169,1748664645323,-300.0,0.0002,2]
[363301171,1748664645332,-341.55181322,0.00020005,2]
[363301173,1748664645341,-430.0,0.00020052,2]
[363301175,1748664645350,-968.98,0.00020052,2]
[363301177,1748664645359,-1397.23,0.00020053,2]
[363301179,1748664645368,-430.0,0.00020053,2]
[363301181,1748664645377,-430.0,0.00020053,2]
[363301183,1748664645386,-459.72,0.00020054,2]
[363301185,1748664645395,-1167.27,0.00020054,2]
[363301187,1748664645405,-430.0,0.00020054,2]
[363301189,1748664645415,-430.0,0.00020054,2]
[363301191,1748664645424,-275.13309956,0.00020054,2]
[363301193,1748664645433,-670.44,0.00020054,2]
[363301195,1748664645443,-1152.08,0.00020054,2]
[363301197,1748664645452,-507.79,0.00020054,2]
[363301199,1748664645462,-430.0,0.00020054,2]
[363301201,1748664645471,-430.0,0.00020054,2]
[363301203,1748664645481,-337.98,0.00020054,2]
[363301205,1748664645490,-430.0,0.00020054,2]
[363301207,1748664645499,-430.0,0.00020055,2]
[363301209,1748664645508,-430.0,0.00020055,2]
[363301211,1748664645517,-430.0,0.00020055,2]
[363301213,1748664645527,-430.0,0.00020055,2]
[363301215,1748664645536,-430.0,0.00020055,2]
[363301217,1748664645545,-430.0,0.00020055,2]
[363301219,1748664645555,-430.0,0.00020055,2]
[363301221,1748664645564,-539.94,0.00020055,2]
[363301223,1748664645573,-430.0,0.00020055,2]
[363301225,1748664645583,-430.0,0.00020055,2]
[363301227,1748664645592,-430.0,0.00020055,2]
[363301229,1748664645601,-459.92054578,0.00020057,2]
[363301231,1748664645610,-601.1127309,0.00020115,2]
[363301232,1748664645619,-1919.78482917,0.00020141,2]
[363301234,1748664645628,-166.0,0.00020274,2]
[363301236,1748664645637,-158.4581234,0.00020274,2]
[363301238,1748664645647,-572.2963003,0.00020274,2]
[363301240,1748664645655,-176.4540852,0.00020274,2]
[363301242,1748664645665,-572.2963003,0.00020274,2]
[363301245,1748664645675,-158.4581234,0.00020274,2]
[363301246,1748664645684,-158.4581234,0.00020274,2]
[363301248,1748664645693,-572.2963003,0.00020274,2]
[363301250,1748664645702,-176.4540852,0.00020274,2]
[363301252,1748664645712,-176.4540852,0.00020274,2]
[363301254,1748664645721,-176.4540852,0.00020274,2]
[363301256,1748664645731,-572.2963003,0.00020274,2]
[363301258,1748664645740,-316.9162468,0.00020274,2]
[363301260,1748664645749,-176.4540852,0.00020274,2]
[363301262,1748664645759,-572.2963003,0.00020274,2]
[363301264,1748664645768,-158.4581234,0.00020274,2]
[363301266,1748664645779,-157.5499743,0.00020301,2]
[363301268,1748664645788,-430.0,0.00020326,2]
[363301270,1748664645798,-968.98,0.00020326,2]
[363301272,1748664645807,-1397.23,0.00020327,2]
[363301274,1748664645821,-430.0,0.00020327,2]
[363301276,1748664645830,-1167.27,0.00020328,2]
[363301278,1748664645840,-430.0,0.00020328,2]
[363301280,1748664645851,-670.44,0.00020328,2]
[363301282,1748664645861,-1152.08,0.00020328,2]
[363301284,1748664645871,-507.79,0.00020328,2]
[363301286,1748664645880,-430.0,0.00020328,2]
[363301288,1748664645893,-430.0,0.00020328,2]
[363301290,1748664645902,-430.0,0.00020328,2]
[363301292,1748664645913,-430.0,0.00020329,2]
[363301294,1748664645922,-430.0,0.00020329,2]
[363301296,1748664645932,-430.0,0.00020329,2]
[363301298,1748664645941,-430.0,0.00020329,2]
[363301300,1748664645951,-430.0,0.00020329,2]
[363301302,1748664645960,-430.0,0.00020329,2]